Cogmind - Beta 9.2 @@@ ROGUE MODE // 2019.11.14 @ 17:01:03 Player: adeno Result: Destroyed by S-10 Pest with Light Assault Rifle Performance ------------- Evolutions (0) 0 Regions Visited (1) 200 Robots Destroyed (6) 30 Value Destroyed (74) 74 Prototype IDs (2) 40 Alien Tech Used (0) 0 Bonus (0) 0 TOTAL SCORE: 344 Bonus ------- None Cogmind --------- Core Integrity 0/250 Matter 300/300 Energy 67/100 System Corruption 0% Temperature Cool (187) Movement Core (150) Ox2 Location -10/Materials Parts ------- > --- POWER (1) -------- (None) > --- PROPULSION (2) --- (None) > --- UTILITY (2) ------ Medium Storage Unit > --- WEAPON (2) ------- (None) > --- INVENTORY (8) ---- Ion Engine Small Storage Unit Peak State ------------ > --- POWER ------------ Light Ion Engine > --- PROPULSION ------- Compact Wheel Compact Wheel > --- UTILITY ---------- Small Storage Unit Improved Terrain Scanner > --- WEAPON ----------- EM Pulse Gun Medium Laser > --- INVENTORY -------- Ion Engine Medium Laser [Rating: 8] Favorites ----------- Power Light Ion Engine Engine Light Ion Engine Propulsion Compact Wheel Wheel Compact Wheel Utility Improved Terrain Scanner Device Improved Terrain Scanner Storage Small Storage Unit Weapon EM Pulse Gun Energy Gun EM Pulse Gun Special Weapon Mining Laser Build | -11 -10 ------- Run | Scr Mat Slots Evolved . | . . Power . | . . Propulsion . | . . Utility . | . . Weapon . | . . Parts Attached 10 | 7 3 Power 1 | 1 . Engine 1 | 1 . Core . | . . Reactor . | . . Propulsion 2 | 2 . Treads . | . . Leg . | . . Wheel 2 | 2 . Hover . | . . Flight . | . . Utility 3 | 2 1 Device 1 | 1 . Storage 2 | 1 1 Processor . | . . Hackware . | . . Protection . | . . Artifact . | . . Weapon 4 | 2 2 Energy Gun 3 | 2 1 Energy Cannon . | . . Ballistic Gun . | . . Ballistic Cannon . | . . Launcher . | . . Special Weapon 1 | . 1 Impact Weapon . | . . Slashing Weapon . | . . Piercing Weapon . | . . Special Melee Weapon . | . . Unidentified Prototypes . | . . Parts Lost 8 | . 8 Power 1 | . 1 Propulsion 2 | . 2 Utility 1 | . 1 Weapon 4 | . 4 Highest Loss Streak 8 | . 8 Average Slot Usage (%) 93 | . 93 Engine 12 | . 12 Wheel 25 | . 25 Device 14 | . 14 Storage 14 | . 14 Energy Gun 25 | . 25 Naked Turns . | . . Heaviest Build 16 | 12 16 Greatest Support 32 | 32 32 Greatest Overweight (x) 2 | . 2 Average Overweight (x) . | . . Largest Inventory Capacity 8 | 6 8 Average Capacity 6 | 5 7 Most Carried 4 | 3 4 Average Carried 2 | 1 3 Final Capacity 8 | 6 8 Final Carried 3 | 3 2 Class Distribution -------------------- 100% | Mutant Dominant Class ---------------- Mutant | -10/Materials Resources | -11 -10 ----------- Run | Scr Mat Matter Collected 260 | 260 . Remotely . | . . Salvage Created 178 | 106 72 Parts 14 | 7 7 Haulers Intercepted . | . . Recyclers Shooed . | . . Parts Field Recycled . | . . Retrieved Matter . | . . Parts Self-Destructed . | . . Prevented . | . . Kills | -11 -10 ------- Run | Scr Mat Combat Hostiles Destroyed 3 | . 3 Guns 3 | . 3 Classes Destroyed 4 | 2 2 Tunneler 2 | 2 . Recycler 1 | 1 . Swarmer 2 | . 2 Grunt 1 | . 1 Best Kill Streak 3 | 3 3 Combat Bots Only 3 | . 3 Max Kills in Single Turn 2 | 1 2 Gunslinging 1 | . 1 Exploded . | . . Melee . | . . Uniques/NPCs Destroyed . | . . Combat | -11 -10 -------- Run | Scr Mat Damage Taken 659 | . 659 Core 254 | . 254 Absorbed by Shields . | . . Core Remaining (%) 100 | 100 . Volleys Fired 14 | 3 11 Largest 2 | 2 2 Hottest 100 | 90 100 Shots Fired 27 | 6 21 Gun 26 | 6 20 Cannon . | . . Launcher . | . . Special 1 | . 1 Kinetic . | . . Thermal 14 | 3 11 Explosive . | . . Electromagnetic 13 | 3 10 Robot Hit Streak 2 | 2 2 Robot Miss Streak 3 | 1 3 Penetration Max . | . . Secondary Targets 1 | . 1 Max Gunslinging Chain 1 | . 1 Shots Hit Robots 11 | 3 8 Core Hits 8 | 4 4 Critical Hits . | . . Critical Kills . | . . Critical Parts Destroyed . | . . Melee Attacks . | . . Impact . | . . Slashing . | . . Piercing . | . . Sneak Attacks . | . . Combat Hostiles . | . . Follow-up Attacks . | . . Damage Inflicted 172 | 67 105 Guns 167 | 67 100 Cannons . | . . Explosions . | . . Melee . | . . Ramming 5 | . 5 Kinetic . | . . Thermal 63 | 26 37 Explosive . | . . Electromagnetic 104 | 41 63 Impact . | . . Slashing . | . . Piercing . | . . Highest Corruption . | . . Average Corruption . | . . Corruption Purged . | . . Overload Shots . | . . Overflow Damage . | . . Projectiles . | . . Explosions . | . . Melee . | . . Knockbacks . | . . Impact . | . . Kinetic . | . . Secondary . | . . Self-Inflicted Damage 2 | . 2 Shots . | . . Rammed 3 | . 3 Targets Rammed 3 | . 3 Kicked . | . . Crushed . | . . Highest Temperature 330 | 30 330 Average Temperature 155 | 17 190 Received Heat Transfer 222 | . 222 Siege Activations . | . . Robots Corrupted . | . . Combat Hostiles . | . . Parts Fried . | . . Impact Corruptions . | . . Robots Melted . | . . Combat Hostiles . | . . Parts Melted . | . . Heat Transferred 185 | 74 111 Parts Sabotaged . | . . Parts Stolen . | . . Parts Stripped . | . . Power Chain Reactions . | . . Missiles Intercepted . | . . Alert | -11 -10 ------- Run | Scr Mat Peak Influence 94 | 15 94 Average Influence 21 | 5 30 Maximum Alert Level . | . . Low Security (%) 100 | 100 100 Level 1 . | . . Level 2 . | . . Level 3 . | . . Level 4 . | . . Level 5 . | . . High Security . | . . Max Security . | . . Squads Dispatched 2 | . 2 Investigation 1 | . 1 Extermination . | . . Reinforcement 1 | . 1 Assault . | . . Garrison . | . . Intercept . | . . Construction Impeded . | . . Haulers Reinforced . | . . Stealth | -11 -10 --------- Run | Scr Mat Distress Signals . | . . Communications Jammed . | . . Distress Signals . | . . Times Spotted 14 | . 14 Peak Tracking Total 11 | . 11 Tactical Retreats . | . . Traps | -11 -10 ------- Run | Scr Mat Traps Triggered 1 | . 1 Indirectly . | . . Trap Hack Attempts . | . . Triggered . | . . Disarmed . | . . Reprogrammed . | . . Reused . | . . Traps Extracted . | . . Installed . | . . Triggered . | . . Machines | -11 -10 ---------- Run | Scr Mat Machines Disabled . | . . Max in Single Turn . | . . Machines Sabotaged . | . . Garrisons Compromised . | . . Overloaded Fab Kills . | . . Fab Network Shutdowns . | . . Hacking | -11 -10 --------- Run | Scr Mat Machines Accessed 1 | . 1 Terminals 1 | . 1 Fabricators . | . . Repair Stations . | . . Recycling Units . | . . Scanalyzers . | . . Garrison Access . | . . Total Hacks 4 | . 4 Successful 3 | . 3 Failed 1 | . 1 Catastrophic . | . . Database Lockouts . | . . Manual . | . . Terminals 4 | . 4 Fabricators . | . . Repair Stations . | . . Recycling Units . | . . Scanalyzers . | . . Garrison Access . | . . Terminal Hacks 3 | . 3 Prototype ID Bank 1 | . 1 Hauler Manifests 1 | . 1 Zone Layout 1 | . 1 Fabricator Hacks . | . . Repair Station Hacks . | . . Recycling Unit Hacks . | . . Scanalyzer . | . . Garrison Access Hacks . | . . Unauthorized Hacks . | . . Terminals . | . . Fabricators . | . . Repair Stations . | . . Recycling Units . | . . Scanalyzers . | . . Garrison Access . | . . Data Cores Recovered . | . . Used . | . . Hacking Detections 1 | . 1 Full Trace Events . | . . Feedback Events . | . . Feedback Blocked . | . . Robot Schematics Acquired . | . . Robots Built . | . . Matter . | . . Time . | . . Total Robot Build Rating . | . . Part Schematics Acquired . | . . Parts Built . | . . Matter . | . . Time . | . . Total Part Build Rating . | . . Parts Repaired . | . . Time . | . . Parts Recycled . | . . Recycled Matter . | . . Retrieved Matter . | . . Retrieved Components . | . . Parts Scanalyzed . | . . Part Schematics Acquired . | . . Parts Damaged . | . . Bothacking | -11 -10 ------------ Run | Scr Mat Used RIF Installer . | . . Robots Hacked . | . . Non-combat . | . . Combat . | . . Robot Hacks Applied . | . . Relay Couplers Released . | . . Robots Rewired . | . . Allies Hacked . | . . Hacks Repelled . | . . Allies | -11 -10 -------- Run | Scr Mat Total Allies . | . . Largest Group . | . . Highest-Rated Group . | . . Highest-Rated Ally . | . . Total Orders . | . . Ally Attacks . | . . Total Damage . | . . Kills . | . . Allies Corrupted . | . . Allies Melted . | . . Intel | -11 -10 ------- Run | Scr Mat Robot Analysis Total . | . . Derelict Logs Recovered . | . . Drone Launches . | . . Drone Recoveries . | . . Exploration | -11 -10 ------------- Run | Scr Mat Turns Passed 176 | 64 112 Spaces Moved 108 | 44 64 Core 10 | 5 5 Treads . | . . Legs . | . . Wheels 98 | 39 59 Hover . | . . Flight . | . . Fastest Speed 50 | 50 100 Average Speed 100 | 94 103 Slowest Speed 150 | 100 150 Overloaded Moves . | . . Propulsion Burnouts . | . . Robots Hopped . | . . Cave-ins Triggered . | . . Exploration Rate (%) 15 | 5 26 Regions Visited 1 Branch Regions . Pre-discovered Areas . | . . Known Exits Taken . | . . Unknown Exits Taken 1 | 1 . Scrap Searched . | . . Spaces Dug . | . . Terrain Destroyed 1 | . 1 Melee . | . . Projectile 1 | . 1 AOE . | . . Actions | -11 -10 --------- Run | Scr Mat Total 143 | 57 86 Wait 5 | 1 4 Move 107 | 43 64 Hop . | . . Pick Up 4 | 3 1 Fast Attach 7 | 7 . Attach 2 | . 2 Detach . | . . Swap 1 | . 1 Drop . | . . Fire 14 | 3 11 Melee . | . . Ram 3 | . 3 Kick . | . . Crush . | . . Escape Stasis . | . . Rewire . | . . Trap . | . . Miscellaneous . | . . Route ------- -11/Scrapyard -10/Materials (discovered 1 exit: [*Min]) History --------- Turn | Location | Event 3 | -11/Scrapyard | Discovered new exit (range 16) 65 | -11/Scrapyard | Entered Materials 65 | -10/Materials | Discovered new exit (range 8) 170 | -10/Materials | Core integrity fell below 50% 175 | -10/Materials | Core integrity fell below 20% 177 | -10/Materials | Destroyed by S-10 Pest with Light Assault Rifle Last Messages --------------- 00157_ Med. Laser destroyed. 00160_ Com. Wheel destroyed. 00160_ Lgt. Ion Engine destroyed. 00161_ Med. Laser destroyed. 00162_ Slammed into S-10 Pest. 00162_ Destabilizing: Short circuit. 00162_ EM Pulse Gun permanently disabled. 00162_ EM Pulse Gun destroyed. 00163_ Slammed into S-10 Pest. 00165_ R-06 Scavenger collects Flight Unit. 00165_ Com. Wheel destroyed. 00166_ Mining Laser destroyed. 00168_ R-06 Scavenger collects Flight Unit. 00169_ Slammed into S-10 Pest. 00172_ U-05 Engineer builds a Wall. 00173_ K-01 Serf collects debris. 00173_ R-06 Scavenger collects Flight Unit. 00173_ U-05 Engineer destroyed. 00176_ Imp. Terrain Scanner destroyed. 00176_ K-01 Serf collects debris. Map ----- +----------------------------------------------------+ | ?????# % ######## #???????????????? | | ?????# """ #??????# ########?##?????? | | ?????# """ !!! ##?#???# # #?????? | | ?????# """ !!! #??????# # #?????? | | ?????# !!! #??????# # ##????? | | ?????# #??????# # / ?? | | ?????# * #??????# ]+ #?????? | | ?????#############?????## # #?????? | | ????????????????????????# # #?????? | | ?????????????????###############+# #?????? | | ???????????????????# #??# #####/######????? | | ??????????????????## """ #### ?? | | ??????????#????????# """ !+ ?? | | ???????????????????# """ =%#### ?? | | ???????????????????# #??# ##+#########??? | | ???????????????????# #??# #??? ?????????? | | ???????????????????# == #??# # ????????????? | | ???????????????????# =! #??# a#?????????????? | | ???????????????????# %%* #??# #?????????????? | | ???????????????????#####g####### #?????????????? | | ?????????????????????#*%! r ##### ????????? | | ???????????????##????#s%= ???????? | | ?????????????????????# ??????? | | ?????????????????????# kk ???????? | | ?????????????????????# ####??????????? | | ???????????????????#?# @ #### #?????????????? | | ?????????????????????# #??? #????????????? | | ?????????????????????# #??? #????????????? | | ?????????????????????# #???????#????????????? | | ??????????????#??????# #????????????????????? | | ?????????????????????# #????????????????????? | | ?????????????????????# gg #????????????????????? | | ?????????????????????# #??? ????????????????? | | ?????????????????????# #????????????????????? | | ???????????????T?????# ????????????????????? | | ?????????????????????# s k ????????????????????? | | ?????????????????????#ss """????????????????????? | | ?????????????????????# """ ???????????????????? | | ?????????????????????# ???????????????????????? | | ?????????????????????# ???????????????????????? | | ??????????????????????? ???????????????????????? | | ?????????????????????????????????????????????????? | | ?????????????????????????????????????????????????? | | ?????????????????????????????????????????????????? | | ?????????????????????????????????????????????????? | | ?????????????????????????????????????????????????? | | ?????????????????????????????????????????????????? | | ?????????????????????????????????????????????????? | | ?????????????????????????????????????????????????? | | ?????????????????????????????????????????????????? | +----------------------------------------------------+ Best States ------------- Heat Dissipation 25 Energy Generation 10 Energy Capacity 125 Matter Stores 300 Matter Capacity 300 Sight Range 16 Terrain Scan Range 16 Terrain Scan Density 10 Evasion (%) 40 Item Schematics ----------------- None Robot Schematics ------------------ None Fabricated ------------ Nothing Alien Tech Used ----------------- None Achievements -------------- None Challenges ------------ None Game ------ Seed CentriumAngularTreads Manual? 0 Play Time 00:12:25 Cumulative 10.6 hours Start 2019.11.14 @ 16:43:11 End 2019.11.14 @ 17:01:03 Sessions 1 Manual Loads 0 Difficulty Rogue Special Mode None Game No. 11 Rogue 8 Adventurer 3 Explorer 0 Win Type - Total 0 Types 0/0/0/0/0/0/0 Lore% 4 Gallery% 18 Achievement% 15 Wizard Run 0 Options --------- ASCII 0 Keyboard 0 Movement Mouse Keybinds 0 Fullscreen 1 Font 12/Smallcaps Map View 83x54 Tactical HUD 1 Map Filters NONE Filters NONE Steam 1 RUN: e0ebf6e9-74df-4a7e-8c26-21b517bd4486